[Event "*** SCC Grand Prix: Titled Tuesday Blitz"]
[Site "Chess.com"]
[Date "2020.08.11"]
[Round "2"]
[White "Sanyura"]
[Black "szefru"]
[Result "1-0"]
[WhiteElo "2386"]
[BlackElo "2107"]
[TimeControl "180+1"]
[EndTime "10:16:05 PDT"]
[Termination "Sanyura won by resignation"]

1. Nf3 {[%clk 0:01:57.4]} 1... d5 {[%clk 0:02:58.6]} 2. g3 {[%clk 0:01:57.6]}
2... c6 {[%clk 0:02:58.6]} 3. d3 {[%clk 0:01:57.6]} 3... Nf6 {[%clk 0:02:58.9]}
4. Nbd2 {[%clk 0:01:58.3]} 4... e6 {[%clk 0:02:58.8]} 5. Bg2 {[%clk 0:01:55.6]}
5... h5 {[%clk 0:02:58.6]} 6. O-O {[%clk 0:01:56.5]} 6... Nbd7 {[%clk
0:02:58.8]} 7. e4 {[%clk 0:01:56.8]} 7... Be7 {[%clk 0:02:58.5]} 8. c3 {[%clk
0:01:56.5]} 8... e5 {[%clk 0:02:57.5]} 9. exd5 {[%clk 0:01:55.7]} 9... cxd5
{[%clk 0:02:57.2]} 10. Re1 {[%clk 0:01:56.6]} 10... Bd6 {[%clk 0:02:57.1]} 11.
Nxe5 {[%clk 0:01:55.9]} 11... Bxe5 {[%clk 0:02:55]} 12. d4 {[%clk 0:01:56.5]}
12... Ng4 {[%clk 0:02:53.2]} 13. h3 {[%clk 0:01:47.5]} 13... Ndf6 {[%clk
0:02:32]} 14. dxe5 {[%clk 0:01:45.4]} 14... Qb6 {[%clk 0:02:26.9]} 15. exf6+
{[%clk 0:01:45.2]} 15... Kf8 {[%clk 0:02:25.5]} 16. hxg4 {[%clk 0:01:44.8]}
16... hxg4 {[%clk 0:02:25.1]} 17. Nb3 {[%clk 0:01:37.7]} 17... Qxf6 {[%clk
0:02:18.4]} 18. Qd4 {[%clk 0:01:37.3]} 18... Qg6 {[%clk 0:02:07.2]} 19. Qc5+
{[%clk 0:01:30.4]} 19... Kg8 {[%clk 0:02:06.8]} 20. Re8+ {[%clk 0:01:30.3]}
20... Kh7 {[%clk 0:02:06.6]} 21. Rxh8+ {[%clk 0:01:31.2]} 21... Kxh8 {[%clk
0:02:06.8]} 22. Qf8+ {[%clk 0:01:27.5]} 22... Kh7 {[%clk 0:02:06.5]} 23. Bf4
{[%clk 0:01:27.9]} 23... a5 {[%clk 0:01:58.4]} 24. Nd4 {[%clk 0:01:19.5]} 24...
a4 {[%clk 0:01:49.3]} 25. Re1 {[%clk 0:01:19.4]} 25... a3 {[%clk 0:01:44.4]} 26.
bxa3 {[%clk 0:01:18.5]} 26... Rxa3 {[%clk 0:01:42.7]} 27. Qxa3 {[%clk
0:01:17.4]} 27... Qd3 {[%clk 0:01:40.3]} 28. Bxd5 {[%clk 0:01:15.5]} 28... f6
{[%clk 0:01:35.1]} 29. Be4+ {[%clk 0:01:14.6]} 1-0

[Event "*** SCC Grand Prix: Titled Tuesday Blitz"]
[Site "Chess.com"]
[Date "2020.08.11"]
[Round "2"]
[White "rududuyk"]
[Black "Titus369"]
[Result "1-0"]
[WhiteElo "2122"]
[BlackElo "2473"]
[TimeControl "180+1"]
[EndTime "10:16:29 PDT"]
[Termination "rududuyk won by resignation"]

1. e4 {[%clk 0:03:00.9]} 1... c5 {[%clk 0:02:57.5]} 2. Nc3 {[%clk 0:02:59.5]}
2... Nc6 {[%clk 0:02:56.8]} 3. f4 {[%clk 0:02:59.6]} 3... g6 {[%clk 0:02:55.2]}
4. Nf3 {[%clk 0:03:00]} 4... Bg7 {[%clk 0:02:54.8]} 5. Bc4 {[%clk 0:03:00.5]}
5... e6 {[%clk 0:02:52]} 6. d3 {[%clk 0:03:01]} 6... Nge7 {[%clk 0:02:51.6]} 7.
O-O {[%clk 0:03:00.5]} 7... O-O {[%clk 0:02:51]} 8. Qe1 {[%clk 0:02:58.7]} 8...
d5 {[%clk 0:02:49.7]} 9. Bb3 {[%clk 0:02:58.6]} 9... Rb8 {[%clk 0:02:40.9]} 10.
f5 {[%clk 0:02:42.7]} 10... gxf5 {[%clk 0:02:34.3]} 11. Qh4 {[%clk 0:02:34.9]}
11... Ng6 {[%clk 0:02:27.3]} 12. Qh5 {[%clk 0:02:31.7]} 12... Nd4 {[%clk
0:02:05.8]} 13. exd5 {[%clk 0:02:11.4]} 13... Nxf3+ {[%clk 0:01:57.8]} 14. Rxf3
{[%clk 0:02:08.8]} 14... Qh4 {[%clk 0:01:58.2]} 15. Qxh4 {[%clk 0:01:39.3]}
15... Nxh4 {[%clk 0:01:51.3]} 16. Rh3 {[%clk 0:01:39.3]} 16... Ra8 {[%clk
0:01:52.2]} 17. Rxh4 {[%clk 0:01:38.5]} 17... Bd7 {[%clk 0:01:30.4]} 18. Bh6
{[%clk 0:01:36.4]} 18... Bxh6 {[%clk 0:01:18.6]} 19. Rxh6 {[%clk 0:01:36]} 19...
Kg7 {[%clk 0:01:11.5]} 20. Rh4 {[%clk 0:01:34.2]} 20... Kf6 {[%clk 0:00:56.9]}
21. Rxh7 {[%clk 0:01:30.4]} 21... b5 {[%clk 0:00:51.3]} 22. dxe6 {[%clk
0:01:28.7]} 22... Bxe6 {[%clk 0:00:49.4]} 23. Bxe6 {[%clk 0:01:27.8]} 23... fxe6
{[%clk 0:00:50.3]} 24. Re1 {[%clk 0:01:23.5]} 24... Rf7 {[%clk 0:00:49.2]} 25.
Rh6+ {[%clk 0:01:22]} 25... Kg7 {[%clk 0:00:49]} 26. Rhxe6 {[%clk 0:01:22.1]}
26... b4 {[%clk 0:00:49.9]} 27. Nd5 {[%clk 0:01:21.2]} 1-0

[Event "*** SCC Grand Prix: Titled Tuesday Blitz"]
[Site "Chess.com"]
[Date "2020.08.11"]
[Round "2"]
[White "Pultis"]
[Black "Zq1"]
[Result "1-0"]
[WhiteElo "2745"]
[BlackElo "2498"]
[TimeControl "180+1"]
[EndTime "10:16:30 PDT"]
[Termination "Pultis won by resignation"]

1. d4 {[%clk 0:03:00.9]} 1... Nf6 {[%clk 0:02:57.8]} 2. c4 {[%clk 0:03:01]} 2...
a6 {[%clk 0:02:57]} 3. g3 {[%clk 0:03:00.8]} 3... c5 {[%clk 0:02:57]} 4. Nf3
{[%clk 0:02:57.6]} 4... cxd4 {[%clk 0:02:56.1]} 5. Nxd4 {[%clk 0:02:58.5]} 5...
d5 {[%clk 0:02:55.9]} 6. Bg2 {[%clk 0:02:48.7]} 6... e5 {[%clk 0:02:51.2]} 7.
Nb3 {[%clk 0:02:45.7]} 7... d4 {[%clk 0:02:47.1]} 8. O-O {[%clk 0:02:43.6]} 8...
Nc6 {[%clk 0:02:45.9]} 9. e3 {[%clk 0:02:42.2]} 9... Be7 {[%clk 0:02:41.5]} 10.
exd4 {[%clk 0:02:41.4]} 10... Nxd4 {[%clk 0:02:36.7]} 11. Nxd4 {[%clk
0:02:31.2]} 11... exd4 {[%clk 0:02:36]} 12. Re1 {[%clk 0:02:27.6]} 12... O-O
{[%clk 0:02:33.7]} 13. b3 {[%clk 0:02:27.2]} 13... a5 {[%clk 0:02:23.2]} 14.
Rxe7 {[%clk 0:02:13.7]} 14... Qxe7 {[%clk 0:02:21.2]} 15. Ba3 {[%clk 0:02:14.3]}
15... Qd7 {[%clk 0:01:41.7]} 16. Bxf8 {[%clk 0:02:12.3]} 16... Kxf8 {[%clk
0:01:42.3]} 17. Na3 {[%clk 0:02:11.9]} 17... Ra6 {[%clk 0:01:38]} 18. Nb5 {[%clk
0:02:09.8]} 18... d3 {[%clk 0:01:37.1]} 19. Qd2 {[%clk 0:02:05]} 19... Re6
{[%clk 0:01:25.6]} 20. Bh3 {[%clk 0:02:03.8]} 20... Qd8 {[%clk 0:01:07.9]} 21.
Bxe6 {[%clk 0:01:53.5]} 21... Bxe6 {[%clk 0:01:07.7]} 22. Rd1 {[%clk 0:01:52.8]}
22... Bf5 {[%clk 0:01:00.5]} 23. Qf4 {[%clk 0:01:53]} 23... Bg4 {[%clk
0:00:33.2]} 24. f3 {[%clk 0:01:52.5]} 24... Qb6+ {[%clk 0:00:26.5]} 25. Qd4
{[%clk 0:01:52.7]} 1-0

[Event "*** SCC Grand Prix: Titled Tuesday Blitz"]
[Site "Chess.com"]
[Date "2020.08.11"]
[Round "2"]
[White "paulrusan"]
[Black "PlotnikovPavel"]
[Result "0-1"]
[WhiteElo "2205"]
[BlackElo "2427"]
[TimeControl "180+1"]
[EndTime "10:16:43 PDT"]
[Termination "PlotnikovPavel won by resignation"]

1. e4 {[%clk 0:03:00.9]} 1... e6 {[%clk 0:02:42.2]} 2. Nf3 {[%clk 0:03:00.3]}
2... d5 {[%clk 0:02:42.1]} 3. e5 {[%clk 0:03:00.7]} 3... Ne7 {[%clk 0:02:40.8]}
4. d4 {[%clk 0:02:59]} 4... Nf5 {[%clk 0:02:40.4]} 5. c3 {[%clk 0:02:57.2]} 5...
c5 {[%clk 0:02:40.3]} 6. Be2 {[%clk 0:02:49.8]} 6... Nc6 {[%clk 0:02:39.6]} 7.
dxc5 {[%clk 0:02:39.5]} 7... Bxc5 {[%clk 0:02:38.7]} 8. b4 {[%clk 0:02:36.9]}
8... Be7 {[%clk 0:02:38.3]} 9. O-O {[%clk 0:02:32.6]} 9... O-O {[%clk
0:02:37.5]} 10. a3 {[%clk 0:02:29.8]} 10... f6 {[%clk 0:02:34.9]} 11. exf6
{[%clk 0:02:29]} 11... Bxf6 {[%clk 0:02:34.4]} 12. Ra2 {[%clk 0:02:26.9]} 12...
e5 {[%clk 0:02:27.8]} 13. Rd2 {[%clk 0:01:51.9]} 13... Be6 {[%clk 0:02:27.2]}
14. Bc4 {[%clk 0:01:47.3]} 14... Nce7 {[%clk 0:02:21.2]} 15. Re1 {[%clk
0:01:35.2]} 15... Rc8 {[%clk 0:02:20]} 16. Bb3 {[%clk 0:01:33.2]} 16... e4
{[%clk 0:02:17.7]} 17. Rxe4 {[%clk 0:01:27.1]} 17... dxe4 {[%clk 0:02:14.2]} 18.
Rxd8 {[%clk 0:01:25.2]} 18... Rcxd8 {[%clk 0:02:12]} 19. Bxe6+ {[%clk
0:01:24.2]} 19... Kh8 {[%clk 0:02:12]} 20. Nd4 {[%clk 0:01:24.2]} 20... Nxd4
{[%clk 0:02:10.1]} 21. cxd4 {[%clk 0:01:24.1]} 21... Bxd4 {[%clk 0:02:07.9]} 22.
Qe2 {[%clk 0:01:01.1]} 22... Rxf2 {[%clk 0:02:06]} 23. Qxf2 {[%clk 0:01:00]}
23... Bxf2+ {[%clk 0:02:05.7]} 24. Kxf2 {[%clk 0:01:00.3]} 24... Rd1 {[%clk
0:02:06]} 25. Bg5 {[%clk 0:00:54.8]} 25... e3+ {[%clk 0:02:00.2]} 26. Ke2 {[%clk
0:00:44.8]} 26... Rxb1 {[%clk 0:01:54.9]} 27. Bxe7 {[%clk 0:00:44.1]} 27... Rb2+
{[%clk 0:01:54.9]} 28. Kxe3 {[%clk 0:00:44.3]} 28... Rxg2 {[%clk 0:01:55]} 29.
Bd6 {[%clk 0:00:43.5]} 29... Rg6 {[%clk 0:01:54.1]} 30. Bd5 {[%clk 0:00:38.5]}
30... Rxd6 {[%clk 0:01:53.7]} 31. Bxb7 {[%clk 0:00:38.6]} 31... g5 {[%clk
0:01:53]} 32. a4 {[%clk 0:00:31.6]} 32... Rb6 {[%clk 0:01:52.8]} 0-1

[Event "*** SCC Grand Prix: Titled Tuesday Blitz"]
[Site "Chess.com"]
[Date "2020.08.11"]
[Round "2"]
[White "sodastream007"]
[Black "Gorin_Leonid"]
[Result "1-0"]
[WhiteElo "2210"]
[BlackElo "2615"]
[TimeControl "180+1"]
[EndTime "10:16:45 PDT"]
[Termination "sodastream007 won by resignation"]

1. d4 {[%clk 0:03:00.9]} 1... Nf6 {[%clk 0:02:58.8]} 2. c4 {[%clk 0:03:00.7]}
2... e6 {[%clk 0:02:58.8]} 3. Nf3 {[%clk 0:02:59.6]} 3... b6 {[%clk 0:02:58.2]}
4. g3 {[%clk 0:02:59.5]} 4... Ba6 {[%clk 0:02:57.2]} 5. Qc2 {[%clk 0:02:59.4]}
5... Bb7 {[%clk 0:02:56.5]} 6. Bg2 {[%clk 0:02:57.3]} 6... c5 {[%clk 0:02:55.1]}
7. d5 {[%clk 0:02:52]} 7... exd5 {[%clk 0:02:54.7]} 8. O-O {[%clk 0:02:50]} 8...
dxc4 {[%clk 0:02:52.5]} 9. Nc3 {[%clk 0:02:48.9]} 9... Be7 {[%clk 0:02:43.4]}
10. e4 {[%clk 0:02:47.7]} 10... Nc6 {[%clk 0:02:30]} 11. e5 {[%clk 0:02:33.8]}
11... Nb4 {[%clk 0:02:22]} 12. Qe2 {[%clk 0:02:28.7]} 12... Nfd5 {[%clk
0:02:17]} 13. Qxc4 {[%clk 0:02:26.1]} 13... Nxc3 {[%clk 0:01:58.5]} 14. bxc3
{[%clk 0:02:21.2]} 14... Ba6 {[%clk 0:01:56.7]} 15. Qg4 {[%clk 0:02:17.1]} 15...
Bxf1 {[%clk 0:01:55]} 16. Bxf1 {[%clk 0:02:16.2]} 16... Nc6 {[%clk 0:01:46.8]}
17. Qxg7 {[%clk 0:02:12.3]} 17... Rf8 {[%clk 0:01:47.2]} 18. Bh6 {[%clk
0:02:11.9]} 18... Qc7 {[%clk 0:01:47.2]} 19. Ba6 {[%clk 0:02:09.7]} 19... Nb8
{[%clk 0:01:42.7]} 20. Bb5 {[%clk 0:02:07.2]} 20... a6 {[%clk 0:01:41.2]} 21.
Be2 {[%clk 0:02:03.8]} 21... Nc6 {[%clk 0:01:39.7]} 22. Qxh7 {[%clk 0:02:00.5]}
22... O-O-O {[%clk 0:01:37.2]} 23. Bxa6+ {[%clk 0:01:58.9]} 23... Kb8 {[%clk
0:01:36.7]} 24. Bxf8 {[%clk 0:01:58.4]} 24... Rxf8 {[%clk 0:01:37.1]} 25. Rd1
{[%clk 0:01:53.5]} 25... Ka7 {[%clk 0:01:18]} 26. Bb5 {[%clk 0:01:51.3]} 26...
Kb7 {[%clk 0:01:08]} 27. Qf5 {[%clk 0:01:49.2]} 27... Nb8 {[%clk 0:01:05.6]} 28.
c4 {[%clk 0:01:39.7]} 28... d6 {[%clk 0:01:01.4]} 29. exd6 {[%clk 0:01:37.9]}
29... Bxd6 {[%clk 0:01:01.5]} 30. Qd5+ {[%clk 0:01:37.4]} 30... Nc6 {[%clk
0:01:00]} 31. Bxc6+ {[%clk 0:01:33.8]} 31... Qxc6 {[%clk 0:00:59.8]} 32. Qxd6
{[%clk 0:01:33.9]} 32... Qxf3 {[%clk 0:00:56.4]} 33. Rb1 {[%clk 0:01:30.1]} 1-0

[Event "*** SCC Grand Prix: Titled Tuesday Blitz"]
[Site "Chess.com"]
[Date "2020.08.11"]
[Round "2"]
[White "Politov_Pavel"]
[Black "MasterSonnevanck23"]
[Result "1-0"]
[WhiteElo "2072"]
[BlackElo "2356"]
[TimeControl "180+1"]
[EndTime "10:16:46 PDT"]
[Termination "Politov_Pavel won by resignation"]

1. d4 {[%clk 0:03:00.9]} 1... d5 {[%clk 0:02:57.2]} 2. c4 {[%clk 0:03:01.8]}
2... e6 {[%clk 0:02:57.1]} 3. Nc3 {[%clk 0:03:01.2]} 3... a6 {[%clk 0:02:57.2]}
4. cxd5 {[%clk 0:02:58.6]} 4... exd5 {[%clk 0:02:57.1]} 5. Nf3 {[%clk
0:02:59.1]} 5... Nf6 {[%clk 0:02:55.8]} 6. Bg5 {[%clk 0:02:58]} 6... Be6 {[%clk
0:02:53.9]} 7. Qc2 {[%clk 0:02:57.1]} 7... Nbd7 {[%clk 0:02:52.5]} 8. e3 {[%clk
0:02:55.3]} 8... Bd6 {[%clk 0:02:52.1]} 9. Bd3 {[%clk 0:02:52.2]} 9... h6 {[%clk
0:02:49.4]} 10. Bh4 {[%clk 0:02:49.9]} 10... O-O {[%clk 0:02:49.1]} 11. O-O
{[%clk 0:02:41.2]} 11... Rc8 {[%clk 0:02:48.4]} 12. Bh7+ {[%clk 0:02:33]} 12...
Kh8 {[%clk 0:02:46.6]} 13. Bf5 {[%clk 0:02:33.9]} 13... c5 {[%clk 0:02:42]} 14.
dxc5 {[%clk 0:02:27.5]} 14... Nxc5 {[%clk 0:02:37]} 15. Nd4 {[%clk 0:02:27]}
15... Qe7 {[%clk 0:02:30.7]} 16. Rfd1 {[%clk 0:02:22.2]} 16... b5 {[%clk
0:02:28.6]} 17. a3 {[%clk 0:02:16.2]} 17... Nce4 {[%clk 0:02:24.1]} 18. Bxe4
{[%clk 0:02:10.6]} 18... dxe4 {[%clk 0:02:20.4]} 19. Bxf6 {[%clk 0:02:10.4]}
19... Qxf6 {[%clk 0:02:11]} 20. Qxe4 {[%clk 0:02:10.4]} 20... Bd7 {[%clk
0:01:59.1]} 21. Nd5 {[%clk 0:01:58.3]} 21... Qd8 {[%clk 0:01:51.8]} 22. Nf5
{[%clk 0:01:40.9]} 22... Bb8 {[%clk 0:01:42.9]} 23. Nb6 {[%clk 0:01:35.6]} 23...
Bxf5 {[%clk 0:01:35.4]} 24. Rxd8 {[%clk 0:01:30.6]} 24... Bxe4 {[%clk
0:01:31.7]} 25. Rxc8 {[%clk 0:01:30.5]} 25... Rxc8 {[%clk 0:01:30]} 26. Nxc8
{[%clk 0:01:31.4]} 26... Be5 {[%clk 0:01:28]} 27. f3 {[%clk 0:01:22]} 27... Bb7
{[%clk 0:01:15.6]} 28. Nb6 {[%clk 0:01:19.1]} 28... Bxb2 {[%clk 0:01:11.8]} 29.
Ra2 {[%clk 0:01:19.2]} 29... Bf6 {[%clk 0:01:06.1]} 30. Rc2 {[%clk 0:01:15.7]}
30... Kg8 {[%clk 0:01:00.5]} 31. Rc7 {[%clk 0:01:14]} 1-0

[Event "*** SCC Grand Prix: Titled Tuesday Blitz"]
[Site "Chess.com"]
[Date "2020.08.11"]
[Round "2"]
[White "Harsha_Bharathakoti"]
[Black "OhanyanEminChess"]
[Result "1-0"]
[WhiteElo "2853"]
[BlackElo "2429"]
[TimeControl "180+1"]
[EndTime "10:16:53 PDT"]
[Termination "Harsha_Bharathakoti won by resignation"]

1. c4 {[%clk 0:03:00.9]} 1... c5 {[%clk 0:02:55.8]} 2. Nf3 {[%clk 0:03:00.9]}
2... Nf6 {[%clk 0:02:54.4]} 3. Nc3 {[%clk 0:03:00.6]} 3... g6 {[%clk 0:02:54.2]}
4. d4 {[%clk 0:02:59.5]} 4... cxd4 {[%clk 0:02:53.2]} 5. Nxd4 {[%clk 0:03:00.4]}
5... Nc6 {[%clk 0:02:48.1]} 6. e4 {[%clk 0:02:59.7]} 6... d6 {[%clk 0:02:44.1]}
7. Be2 {[%clk 0:02:59.4]} 7... Bg7 {[%clk 0:02:44.2]} 8. Be3 {[%clk 0:02:59.5]}
8... O-O {[%clk 0:02:41.9]} 9. O-O {[%clk 0:02:59.9]} 9... a6 {[%clk 0:02:39.2]}
10. Qd2 {[%clk 0:02:57.9]} 10... Nxd4 {[%clk 0:02:33]} 11. Bxd4 {[%clk
0:02:57.9]} 11... Be6 {[%clk 0:02:33.5]} 12. Rac1 {[%clk 0:02:49.8]} 12... Rc8
{[%clk 0:02:30.8]} 13. b3 {[%clk 0:02:48.2]} 13... Re8 {[%clk 0:02:21.6]} 14. f4
{[%clk 0:02:39.3]} 14... Qa5 {[%clk 0:02:08.3]} 15. Qe3 {[%clk 0:02:25.3]} 15...
Bg4 {[%clk 0:01:54]} 16. Bd3 {[%clk 0:01:45.1]} 16... Be6 {[%clk 0:01:45.3]} 17.
h3 {[%clk 0:01:41]} 17... Red8 {[%clk 0:01:26.3]} 18. Bb6 {[%clk 0:01:37.8]}
18... Qa3 {[%clk 0:01:12.6]} 19. Bxd8 {[%clk 0:01:36.3]} 19... Rxd8 {[%clk
0:01:13.5]} 20. Rc2 {[%clk 0:01:31.3]} 20... Nd7 {[%clk 0:01:06.1]} 21. f5
{[%clk 0:01:27.5]} 21... Nc5 {[%clk 0:00:51.6]} 22. fxe6 {[%clk 0:01:25.7]}
22... Nxe6 {[%clk 0:00:52.5]} 23. Ne2 {[%clk 0:01:22.5]} 1-0

[Event "*** SCC Grand Prix: Titled Tuesday Blitz"]
[Site "Chess.com"]
[Date "2020.08.11"]
[Round "2"]
[White "GoltsevDmitry2000"]
[Black "GigaQuparadze"]
[Result "1/2-1/2"]
[WhiteElo "2600"]
[BlackElo "2929"]
[TimeControl "180+1"]
[EndTime "10:16:59 PDT"]
[Termination "Game drawn by repetition"]

1. e4 {[%clk 0:03:00]} 1... c5 {[%clk 0:02:59.2]} 2. Nf3 {[%clk 0:02:59.6]} 2...
Nc6 {[%clk 0:02:59.2]} 3. b3 {[%clk 0:02:59.2]} 3... d6 {[%clk 0:02:55.8]} 4.
Bb2 {[%clk 0:02:58.8]} 4... Nf6 {[%clk 0:02:56]} 5. e5 {[%clk 0:02:56.1]} 5...
Nxe5 {[%clk 0:02:53.1]} 6. Nxe5 {[%clk 0:02:57]} 6... dxe5 {[%clk 0:02:53.1]} 7.
Bxe5 {[%clk 0:02:57.9]} 7... e6 {[%clk 0:02:52.2]} 8. Nc3 {[%clk 0:02:53]} 8...
Bd6 {[%clk 0:02:51.2]} 9. Qe2 {[%clk 0:02:42.8]} 9... O-O {[%clk 0:02:48.8]} 10.
g3 {[%clk 0:02:35.7]} 10... Bxe5 {[%clk 0:02:45.4]} 11. Qxe5 {[%clk 0:02:36.6]}
11... Nd7 {[%clk 0:02:45.2]} 12. Qe2 {[%clk 0:02:31.1]} 12... b6 {[%clk
0:02:44.2]} 13. Bg2 {[%clk 0:02:31.2]} 13... Rb8 {[%clk 0:02:44]} 14. O-O {[%clk
0:02:31.3]} 14... Bb7 {[%clk 0:02:43.7]} 15. Rad1 {[%clk 0:02:31.7]} 15... Bxg2
{[%clk 0:02:41.7]} 16. Kxg2 {[%clk 0:02:32.6]} 16... Nf6 {[%clk 0:02:41.7]} 17.
Ne4 {[%clk 0:02:30.9]} 17... Qd5 {[%clk 0:02:39.6]} 18. f3 {[%clk 0:02:25.6]}
18... Nxe4 {[%clk 0:02:37.1]} 19. Qxe4 {[%clk 0:02:24.9]} 19... Rbd8 {[%clk
0:02:35.3]} 20. Qxd5 {[%clk 0:02:23.8]} 20... Rxd5 {[%clk 0:02:36.2]} 21. d3
{[%clk 0:02:23.7]} 21... Rfd8 {[%clk 0:02:36.5]} 22. Rfe1 {[%clk 0:02:24.1]}
22... h5 {[%clk 0:02:36.5]} 23. Re4 {[%clk 0:02:23.2]} 23... g6 {[%clk
0:02:35.3]} 24. Rde1 {[%clk 0:02:23.5]} 24... Rd4 {[%clk 0:02:35.3]} 25. a4
{[%clk 0:02:22.6]} 25... Kg7 {[%clk 0:02:34.9]} 26. f4 {[%clk 0:02:21.8]} 26...
Kf6 {[%clk 0:02:34.6]} 27. Kf3 {[%clk 0:02:22.1]} 27... R8d5 {[%clk 0:02:34]}
28. h3 {[%clk 0:02:16.1]} 28... a6 {[%clk 0:02:33.7]} 29. R1e2 {[%clk
0:02:11.5]} 29... Rd8 {[%clk 0:02:31.5]} 30. Re1 {[%clk 0:02:11.4]} 30... R8d7
{[%clk 0:02:21.6]} 31. Re5 {[%clk 0:02:05]} 31... Rc7 {[%clk 0:02:20.1]} 32. g4
{[%clk 0:01:53.9]} 32... hxg4+ {[%clk 0:02:19.1]} 33. hxg4 {[%clk 0:01:54.8]}
33... b5 {[%clk 0:02:19.5]} 34. axb5 {[%clk 0:01:53.4]} 34... axb5 {[%clk
0:02:20.4]} 35. Ke3 {[%clk 0:01:52.9]} 35... Rd8 {[%clk 0:02:13]} 36. Ra1 {[%clk
0:01:50]} 36... c4 {[%clk 0:02:12.6]} 37. Rxb5 {[%clk 0:01:47.7]} 37... cxd3
{[%clk 0:02:12.4]} 38. cxd3 {[%clk 0:01:48.6]} 38... Rc3 {[%clk 0:02:12.3]} 39.
Rd1 {[%clk 0:01:48.5]} 39... Rc2 {[%clk 0:02:11.9]} 40. g5+ {[%clk 0:01:42.6]}
40... Kg7 {[%clk 0:02:11.5]} 41. Rb7 {[%clk 0:01:42.3]} 41... Rh2 {[%clk
0:02:10.6]} 42. b4 {[%clk 0:01:39.2]} 42... Rh3+ {[%clk 0:02:10.3]} 43. Ke4
{[%clk 0:01:37.1]} 43... Rh2 {[%clk 0:02:09.8]} 44. b5 {[%clk 0:01:31.8]} 44...
Rb2 {[%clk 0:02:07.4]} 45. Rc1 {[%clk 0:01:28.3]} 45... Re2+ {[%clk 0:02:01.6]}
46. Kf3 {[%clk 0:01:27.8]} 46... Rd2 {[%clk 0:02:01]} 47. Rcc7 {[%clk
0:01:21.5]} 47... R2xd3+ {[%clk 0:01:59.7]} 48. Ke2 {[%clk 0:01:19.2]} 48...
Rd2+ {[%clk 0:01:58.7]} 49. Ke1 {[%clk 0:01:18.8]} 49... Rd1+ {[%clk 0:01:59]}
50. Ke2 {[%clk 0:01:19.2]} 50... R1d2+ {[%clk 0:01:59.1]} 51. Ke1 {[%clk
0:01:19.4]} 51... Rd1+ {[%clk 0:01:57.6]} 52. Ke2 {[%clk 0:01:19.6]} 52... R8d2+
{[%clk 0:01:56.2]} 53. Ke3 {[%clk 0:01:19.6]} 53... Rd3+ {[%clk 0:01:56.2]} 54.
Ke2 {[%clk 0:01:19.2]} 54... R1d2+ {[%clk 0:01:56.1]} 55. Ke1 {[%clk 0:01:19.3]}
55... Rd1+ {[%clk 0:01:56.3]} 56. Ke2 {[%clk 0:01:19.6]} 56... R1d2+ {[%clk
0:01:56.9]} 57. Ke1 {[%clk 0:01:19.2]} 57... Rd1+ {[%clk 0:01:57.3]} 58. Ke2
{[%clk 0:01:19.4]} 1/2-1/2

[Event "*** SCC Grand Prix: Titled Tuesday Blitz"]
[Site "Chess.com"]
[Date "2020.08.11"]
[Round "2"]
[White "emperor87"]
[Black "Micki-taryan"]
[Result "0-1"]
[WhiteElo "2612"]
[BlackElo "3053"]
[TimeControl "180+1"]
[EndTime "10:17:08 PDT"]
[Termination "Micki-taryan won by resignation"]

1. e4 {[%clk 0:03:00.9]} 1... e5 {[%clk 0:02:59.4]} 2. Nf3 {[%clk 0:03:00.9]}
2... Nc6 {[%clk 0:02:59.9]} 3. Bc4 {[%clk 0:03:00.9]} 3... Bc5 {[%clk
0:02:59.5]} 4. d3 {[%clk 0:03:00.9]} 4... Nf6 {[%clk 0:02:59.9]} 5. c3 {[%clk
0:03:00.7]} 5... a5 {[%clk 0:02:58.6]} 6. O-O {[%clk 0:02:59.9]} 6... O-O {[%clk
0:02:57.2]} 7. h3 {[%clk 0:02:58.9]} 7... h6 {[%clk 0:02:56.3]} 8. Re1 {[%clk
0:02:58.6]} 8... d6 {[%clk 0:02:54.8]} 9. d4 {[%clk 0:02:58.3]} 9... Bb6 {[%clk
0:02:54]} 10. a4 {[%clk 0:02:48.7]} 10... exd4 {[%clk 0:02:46.5]} 11. cxd4
{[%clk 0:02:48.2]} 11... d5 {[%clk 0:02:40.3]} 12. exd5 {[%clk 0:02:47.1]} 12...
Nb4 {[%clk 0:02:40.2]} 13. Nc3 {[%clk 0:02:43.5]} 13... Nbxd5 {[%clk 0:02:40.4]}
14. Ne5 {[%clk 0:02:41.7]} 14... c6 {[%clk 0:02:39.1]} 15. Qd3 {[%clk 0:02:13]}
15... Be6 {[%clk 0:02:34.3]} 16. Qg3 {[%clk 0:02:10]} 16... Bxd4 {[%clk
0:02:16.3]} 17. Bxh6 {[%clk 0:02:05.5]} 17... Nh5 {[%clk 0:02:16.4]} 18. Qf3
{[%clk 0:02:04.3]} 18... Qf6 {[%clk 0:02:00.3]} 19. Nxd5 {[%clk 0:01:43.6]}
19... cxd5 {[%clk 0:01:54.7]} 20. Qxh5 {[%clk 0:01:32.8]} 20... Bxf2+ {[%clk
0:01:48.4]} 21. Kh1 {[%clk 0:01:28.2]} 21... Bxe1 {[%clk 0:01:45.8]} 22. Bg5
{[%clk 0:01:05.7]} 22... Qxe5 {[%clk 0:01:25.2]} 23. Bd3 {[%clk 0:01:05.4]}
23... Bf5 {[%clk 0:01:17.6]} 24. Be7 {[%clk 0:00:58.4]} 24... g6 {[%clk
0:01:14.2]} 25. Qg5 {[%clk 0:00:57.4]} 25... f6 {[%clk 0:01:08.2]} 26. Qh6
{[%clk 0:00:38.7]} 26... Qxe7 {[%clk 0:01:01.1]} 0-1